bitfinex/quotes_BTCUSD_20251104
["timestamp","ask_amount","ask_price","bid_price","bid_amount"]
[1762270482967,0.00328292,104340.0,104330.0,0.48670941]
[1762270483171,0.00328292,104340.0,104330.0,0.88360857]
[1762270483374,0.00328292,104340.0,104330.0,0.89328565]
[1762270483575,0.00328292,104340.0,104330.0,0.90328564]
[1762270484156,0.19162594,104370.0,104360.0,0.19162989]
[1762270484369,0.00014473,104370.0,104360.0,0.2350043]
[1762270484571,0.00014473,104370.0,104360.0,0.2866943]
[1762270485857,0.00714473,104370.0,104360.0,0.2886943]
[1762270486293,0.00714473,104370.0,104360.0,0.4453343]
[1762270486503,0.00014473,104370.0,104360.0,0.2866943]
[1762270486713,0.01314473,104370.0,104360.0,0.33645908]
[1762270486916,0.01314473,104370.0,104360.0,0.53645908]
[1762270487076,0.01314473,104370.0,104360.0,0.33645908]
[1762270487509,0.01314473,104370.0,104360.0,0.87645908]
[1762270489252,0.01314473,104370.0,104360.0,0.67641908]
[1762270489873,0.01386344,104370.0,104360.0,0.67641908]
[1762270490985,0.01386344,104370.0,104360.0,0.87641908]
[1762270491425,0.01386344,104370.0,104360.0,0.67641908]
[1762270491981,0.01386344,104370.0,104360.0,0.87641908]
[1762270494089,0.01386344,104370.0,104360.0,0.88641907]
[1762270494978,0.01386344,104370.0,104360.0,1.07641908]
[1762270495190,0.01386344,104370.0,104360.0,0.87641908]
[1762270495727,0.20548938,104370.0,104360.0,0.05369]
[1762270496066,0.20548938,104370.0,104360.0,0.09697]
[1762270496472,0.20548938,104370.0,104360.0,0.07216]
[1762270496888,0.01386344,104370.0,104360.0,0.2885343]
[1762270497059,0.00086344,104370.0,104360.0,0.2865343]
[1762270497459,0.00386344,104370.0,104360.0,0.2865343]
[1762270497680,0.00386344,104370.0,104360.0,0.35435394]
[1762270497878,0.00086344,104370.0,104360.0,0.69435394]
[1762270498502,0.01386344,104370.0,104360.0,0.69435394]
[1762270498895,0.00086344,104370.0,104360.0,0.69435394]
[1762270499184,0.00086344,104370.0,104360.0,0.35435394]
[1762270499387,0.00086344,104370.0,104360.0,0.2865343]
[1762270500272,0.19248938,104370.0,104360.0,0.09489]
[1762270500518,0.20048938,104370.0,104360.0,0.09489]
[1762270500977,0.19248938,104370.0,104360.0,0.0115]
[1762270501186,0.00086344,104370.0,104360.0,0.02653]
[1762270501416,0.01186344,104370.0,104360.0,0.26905148]
[1762270501615,0.01186344,104370.0,104360.0,0.2429043]
[1762270501817,0.19248938,104370.0,104360.0,0.2429043]
[1762270502015,0.00086344,104370.0,104360.0,0.2429043]
[1762270502512,0.00386344,104370.0,104360.0,0.2429043]
[1762270503186,0.19548938,104370.0,104360.0,0.05126]
[1762270503392,0.23419915,104370.0,104360.0,0.0115]
[1762270503604,0.1916443,104360.0,104350.0,0.05506]
[1762270503845,0.22782658,104360.0,104330.0,0.03623]
[1762270504073,0.1916452,104360.0,104350.0,0.05154]
[1762270504275,0.23385776,104360.0,104350.0,0.02681]
[1762270504691,0.24095295,104370.0,104360.0,0.1916443]
[1762270504904,0.01314473,104370.0,104360.0,0.2314043]
[1762270505125,0.00014473,104370.0,104360.0,0.2314043]
[1762270506394,0.19177067,104370.0,104360.0,0.2314043]
[1762270506570,0.00014473,104370.0,104360.0,0.2314043]
[1762270506800,0.19177067,104370.0,104360.0,0.03976]
[1762270507002,0.00014473,104370.0,104360.0,0.01503]
[1762270507211,0.00014473,104370.0,104360.0,0.2314043]
[1762270507418,0.19177067,104370.0,104360.0,0.2314043]
[1762270507692,0.1916443,104360.0,104350.0,0.05506]
[1762270507898,0.1916443,104360.0,104350.0,0.26175267]
[1762270508303,0.1916443,104360.0,104350.0,0.28648267]
[1762270508515,0.1916443,104360.0,104350.0,0.07009]
[1762270508717,0.1916443,104360.0,104350.0,0.04328]
[1762270508921,0.23411959,104360.0,104350.0,0.04328]
[1762270509135,0.19212348,104360.0,104350.0,0.27470267]
[1762270509333,0.00047918,104360.0,104350.0,0.27470267]
[1762270509539,0.19212348,104360.0,104350.0,0.27470267]
[1762270509746,0.19212348,104360.0,104350.0,0.05831]
[1762270509961,0.19212348,104360.0,104350.0,0.24997267]
[1762270510353,0.2305129,104360.0,104350.0,0.05831]
[1762270510767,0.2305129,104360.0,104350.0,0.04328]
[1762270510977,0.19212348,104360.0,104350.0,0.23494267]
[1762270511183,0.19212348,104360.0,104350.0,0.24997267]
[1762270511395,0.19212348,104360.0,104350.0,0.05831]
[1762270511606,0.19168104,104340.0,104330.0,0.03623]
[1762270511821,0.19168104,104340.0,104330.0,0.0115]
[1762270512447,0.19167934,104350.0,104330.0,0.24295941]
[1762270512650,0.19464481,104360.0,104340.0,0.26072678]
[1762270512828,0.22782709,104360.0,104350.0,0.01178]
[1762270514016,0.19164481,104360.0,104350.0,0.24320267]
[1762270514195,0.61787035,104370.0,104350.0,0.24320267]
[1762270514423,0.65405263,104370.0,104360.0,0.01503]
[1762270514632,0.1916443,104360.0,104350.0,0.22817267]
[1762270515036,0.1916443,104360.0,104350.0,0.05236]
[1762270515154,0.1916443,104360.0,104350.0,0.02763]
[1762270515387,0.1946443,104360.0,104350.0,0.05069]
[1762270515593,0.1946443,104360.0,104350.0,0.24235267]
[1762270515954,0.003,104360.0,104350.0,0.29104245]
[1762270516160,0.003,104360.0,104350.0,0.24235267]
[1762270516458,0.00014473,104370.0,104360.0,0.1916443]
[1762270516659,0.00014473,104370.0,104360.0,0.6138343]
[1762270517877,0.19177067,104370.0,104360.0,0.08219]
[1762270518086,0.00014473,104370.0,104360.0,0.2738343]
[1762270518300,0.00086344,104370.0,104360.0,0.29313127]
[1762270518686,0.01186344,104370.0,104360.0,0.63313127]
[1762270519311,0.00086344,104370.0,104360.0,0.63313127]
[1762270519524,0.01386344,104370.0,104360.0,0.6138343]
[1762270519729,0.01386344,104370.0,104360.0,0.2738343]
[1762270519934,0.20548938,104370.0,104360.0,0.2738343]
[1762270520361,0.20548938,104370.0,104360.0,0.08219]
[1762270520571,0.20548938,104370.0,104360.0,0.2507743]
[1762270521006,0.19248938,104370.0,104360.0,0.2738343]
[1762270521213,0.00086344,104370.0,104360.0,0.2738343]
[1762270521423,0.01186344,104370.0,104360.0,0.2738343]
[1762270521840,0.00086344,104370.0,104360.0,0.2738343]
[1762270522248,0.00386344,104370.0,104360.0,0.2738343]
[1762270523040,0.00086344,104370.0,104360.0,0.2738343]
[1762270523168,0.19248938,104370.0,104360.0,0.08219]
[1762270523369,0.19248938,104370.0,104360.0,0.08215]
[1762270524024,0.19248938,104370.0,104360.0,0.2507343]
[1762270524179,0.19248938,104370.0,104360.0,0.2737943]
[1762270524384,0.20548938,104370.0,104360.0,0.2737943]
[1762270525031,0.01386344,104370.0,104360.0,0.2737943]
[1762270525256,0.00086344,104370.0,104360.0,0.3215179]
[1762270525639,0.00386344,104370.0,104360.0,0.2737943]
[1762270526051,0.19248938,104370.0,104360.0,0.2737943]
[1762270526253,0.19248938,104370.0,104360.0,0.04324]
[1762270526415,0.20548938,104370.0,104360.0,0.04324]
[1762270526660,0.32777134,104370.0,104360.0,0.04324]
[1762270526882,0.4223474,104370.0,104360.0,0.04324]
[1762270527791,0.4093474,104370.0,104360.0,0.04324]
[1762270527997,0.1916443,104360.0,104340.0,0.01193]
[1762270528195,0.19166267,104350.0,104340.0,0.24685051]
[1762270528399,0.19477392,104370.0,104350.0,0.20750045]
[1762270528583,0.23437022,104370.0,104360.0,0.01585]
[1762270528938,0.23137022,104370.0,104360.0,0.2074943]
[1762270529170,0.00014473,104370.0,104360.0,0.2305543]
[1762270529378,0.19248938,104370.0,104360.0,0.03891]
[1762270529580,0.19248938,104370.0,104360.0,0.2074943]
[1762270530141,0.19248938,104370.0,104360.0,0.01585]
[1762270530341,0.19166267,104350.0,104340.0,0.07823]
[1762270530547,0.19166267,104350.0,104340.0,0.05517]
[1762270531442,0.19166267,104350.0,104340.0,0.28713104]
[1762270531673,0.1916443,104360.0,104340.0,0.28713104]
[1762270531826,0.19166267,104350.0,104340.0,0.28713104]
[1762270532330,0.19466267,104350.0,104340.0,0.09545]
[1762270532538,0.19466267,104350.0,104340.0,0.28713104]
[1762270532743,0.19466267,104350.0,104340.0,0.09545]
[1762270532981,0.19466267,104350.0,104340.0,0.07049]
[1762270533182,0.19466267,104350.0,104330.0,0.0115]
[1762270533183,0.19168104,104340.0,104330.0,0.0115]
[1762270533347,0.19171619,104330.0,104310.0,0.23660104]
[1762270533544,0.19171619,104330.0,104320.0,0.24743779]
[1762270533758,0.23886025,104350.0,104320.0,0.29629367]
[1762270533969,0.19168104,104340.0,104330.0,0.01574]
[1762270534216,0.19168104,104340.0,104330.0,0.20743941]
[1762270534585,0.03618228,104350.0,104340.0,0.19168104]
[1762270534802,0.22798963,104350.0,104340.0,0.23095104]
[1762270535007,0.22798963,104350.0,104330.0,0.19169941]
[1762270535008,0.19168104,104340.0,104330.0,0.19169941]
[1762270535435,0.27647812,104350.0,104340.0,0.19168104]
[1762270535634,0.27647812,104350.0,104340.0,0.20742104]
[1762270535843,0.05187279,104350.0,104340.0,0.23095104]
[1762270536050,0.24353546,104350.0,104340.0,0.23095104]
[1762270536450,0.19168104,104340.0,104320.0,0.62055367]
[1762270536662,0.19504697,104350.0,104330.0,0.21522681]
[1762270536870,0.19168104,104340.0,104330.0,0.23096941]
[1762270537073,0.19504697,104350.0,104340.0,0.19168104]
[1762270537280,0.19504697,104350.0,104340.0,0.20742104]
[1762270537481,0.19204697,104350.0,104340.0,0.20742104]
[1762270538040,0.19204697,104350.0,104340.0,0.01574]
[1762270538617,0.19204697,104350.0,104340.0,0.03927]
[1762270538618,0.2369412,104350.0,104340.0,0.03927]
[1762270538824,0.2399412,104350.0,104340.0,0.01574]
[1762270539025,0.19168104,104340.0,104320.0,0.28055367]
[1762270539468,0.2399412,104350.0,104330.0,0.23096941]
[1762270539673,0.19168104,104340.0,104330.0,0.21522941]
[1762270539990,0.19168104,104340.0,104330.0,0.23096941]
[1762270540194,0.19168104,104340.0,104330.0,0.03927]
[1762270540412,0.19168104,104340.0,104330.0,0.23096941]
[1762270540823,0.27312348,104350.0,104330.0,0.23096941]
[1762270541026,0.011,104340.0,104330.0,0.23096941]
[1762270541265,0.20268104,104340.0,104330.0,0.23096941]
[1762270541463,0.19168104,104340.0,104330.0,0.23096941]
[1762270541669,0.22822925,104350.0,104330.0,0.23096941]
[1762270541872,0.22822925,104350.0,104340.0,0.20742104]
[1762270542250,0.19204697,104350.0,104340.0,0.01574]
[1762270542428,0.19204697,104350.0,104340.0,0.20742104]
[1762270542631,0.0003843,104350.0,104340.0,0.20742104]
[1762270542837,0.0003843,104350.0,104340.0,0.31410308]
[1762270544081,0.0023843,104350.0,104340.0,0.31410308]
[1762270544454,0.0003843,104350.0,104340.0,0.31410308]
[1762270544655,0.19204697,104350.0,104340.0,0.27419104]
[1762270544876,0.20304697,104350.0,104340.0,0.05898]
[1762270545275,0.19169941,104330.0,104320.0,0.03618]
[1762270545516,0.19169941,104330.0,104320.0,0.28691779]
[1762270545933,0.27778072,104340.0,104320.0,0.28691779]
[1762270546552,0.19168104,104340.0,104330.0,0.20747941]
[1762270546789,0.19168104,104340.0,104330.0,0.23117941]
[1762270546997,0.19204697,104350.0,104330.0,0.23117941]
[1762270547197,0.19204697,104350.0,104340.0,0.01578]
[1762270547821,0.19204697,104350.0,104340.0,0.20746104]
[1762270548053,0.23499262,104350.0,104340.0,0.23116104]
[1762270548291,0.04932995,104350.0,104340.0,0.20746104]
[1762270548555,0.0063843,104350.0,104340.0,0.27440104]
[1762270548739,0.0003843,104350.0,104340.0,0.27440104]
[1762270549351,0.0033843,104350.0,104340.0,0.27640104]
[1762270551090,0.0003843,104350.0,104340.0,0.27440104]
[1762270551385,0.0143843,104350.0,104340.0,0.27440104]
[1762270552009,0.0143843,104350.0,104340.0,0.29084808]
[1762270552422,0.0143843,104350.0,104340.0,0.27440104]
[1762270552829,0.0143843,104350.0,104340.0,0.61440104]
[1762270553029,0.0143843,104350.0,104340.0,0.27440104]
[1762270553786,0.20604697,104350.0,104340.0,0.27440104]
[1762270553991,0.0143843,104350.0,104340.0,0.27440104]
[1762270554191,0.20595253,104350.0,104340.0,0.27440104]
[1762270554656,0.20595253,104350.0,104340.0,0.04324]
[1762270554867,0.20595253,104350.0,104340.0,0.23492104]
[1762270555057,0.01428986,104350.0,104340.0,0.27440104]
[1762270560330,0.00028986,104350.0,104340.0,0.27440104]
[1762270560757,0.01328986,104350.0,104340.0,0.27540104]
[1762270561160,0.01328986,104350.0,104340.0,0.29463707]
[1762270563043,0.01328986,104350.0,104340.0,0.27540104]
[1762270563255,0.20495253,104350.0,104340.0,0.001]
[1762270563458,0.29105221,104350.0,104340.0,0.04424]
[1762270563630,0.32723449,104350.0,104340.0,0.04424]
[1762270563843,0.04947214,104350.0,104340.0,0.001]
[1762270564045,0.04947214,104350.0,104340.0,0.01678]
[1762270564046,0.26524649,104350.0,104340.0,0.01678]
[1762270564207,0.25224649,104350.0,104340.0,0.01578]
[1762270564428,0.02440154,104350.0,104340.0,0.20746104]
[1762270564628,0.01528986,104350.0,104340.0,0.23216104]
[1762270565253,0.00028986,104350.0,104340.0,0.57116104]
[1762270565678,0.00528986,104350.0,104340.0,0.57316104]
[1762270566861,0.00028986,104350.0,104340.0,0.57116104]
[1762270567277,0.27777699,104410.0,104380.0,0.00958037]
[1762270567483,0.19157088,104400.0,104380.0,0.26017642]
[1762270567707,0.19157088,104400.0,104380.0,0.08272]
[1762270567913,0.27768891,104390.0,104380.0,0.04324]
[1762270568342,0.27768891,104390.0,104380.0,0.25062758]
[1762270568546,0.19157088,104400.0,104380.0,0.27432758]
[1762270568747,0.19157088,104400.0,104390.0,0.21976923]
[1762270568952,0.19157088,104400.0,104390.0,0.24346923]
[1762270569155,0.19157088,104400.0,104390.0,0.05188]
[1762270569353,0.19157088,104400.0,104390.0,0.02818]
[1762270569768,0.19157088,104400.0,104390.0,0.0124]
[1762270569964,0.19158923,104390.0,104380.0,0.26812795]
[1762270570181,0.19157088,104400.0,104390.0,0.24346874]
[1762270570382,0.22788211,104410.0,104400.0,0.19157088]
[1762270570587,0.22788211,104410.0,104400.0,0.20735088]
[1762270570753,0.19158923,104390.0,104370.0,0.0124]
[1762270571088,0.19158923,104390.0,104370.0,0.07934]
[1762270571089,0.19160758,104380.0,104370.0,0.07934]
[1762270571579,0.19158923,104390.0,104370.0,0.28674594]
[1762270571794,0.19158923,104390.0,104380.0,0.23108758]
[1762270572019,0.54114942,104400.0,104380.0,0.23608758]
[1762270572020,0.53357088,104400.0,104380.0,0.23608758]
[1762270572224,0.56975316,104400.0,104380.0,0.04448]
[1762270572398,0.19160758,104380.0,104370.0,0.05564]
[1762270572601,0.19160758,104380.0,104370.0,0.24726594]
[1762270572811,0.19160758,104380.0,104370.0,0.07142]
[1762270572986,0.19160758,104380.0,104370.0,0.28674594]
[1762270573189,0.19360758,104380.0,104370.0,0.29474594]
[1762270573510,0.19360758,104380.0,104370.0,0.29574594]
[1762270573711,0.002,104380.0,104370.0,0.34472458]
[1762270574078,0.002,104380.0,104370.0,0.34572458]
[1762270574456,0.19157168,104400.0,104390.0,0.19158923]
[1762270574634,0.19157168,104400.0,104390.0,0.20398923]
[1762270574780,0.27779913,104410.0,104400.0,0.19157088]
[1762270574981,0.19157088,104400.0,104390.0,0.28670923]
[1762270575180,0.19157088,104400.0,104390.0,0.07142]
[1762270575430,0.27779913,104410.0,104390.0,0.28584923]
[1762270575601,0.19157088,104400.0,104390.0,0.28584923]
[1762270575802,0.19169723,104410.0,104400.0,0.23013088]
[1762270576009,0.0001447,104410.0,104400.0,0.23013088]
[1762270577525,0.0001447,104410.0,104400.0,0.57013088]
[1762270577934,0.0031447,104410.0,104400.0,0.57013088]
[1762270578200,0.0031447,104410.0,104400.0,0.23013088]
[1762270578439,0.0031447,104410.0,104400.0,0.27437088]
[1762270578617,0.0001447,104410.0,104400.0,0.6828531]
[1762270579038,0.0021447,104410.0,104400.0,0.6838531]
[1762270579177,0.00358148,104410.0,104400.0,0.6838531]
[1762270579979,0.00358148,104410.0,104400.0,0.6828531]
[1762270580433,0.00158148,104410.0,104400.0,0.6828531]
[1762270580683,0.00158148,104410.0,104400.0,0.6848531]
[1762270580893,0.00758148,104410.0,104400.0,0.6848531]
[1762270582097,0.00758148,104410.0,104400.0,0.76637607]
[1762270582405,0.00758148,104410.0,104400.0,0.75637608]
[1762270582711,0.00758148,104410.0,104400.0,0.69485309]
[1762270582951,0.00758148,104410.0,104400.0,0.6848531]
[1762270583381,0.00758148,104410.0,104400.0,0.8848531]
[1762270583596,0.00758148,104410.0,104400.0,0.5448531]
[1762270583802,0.19913401,104410.0,104400.0,0.27633088]
[1762270583977,0.19913401,104410.0,104400.0,0.06192]
[1762270584412,0.00758148,104410.0,104400.0,0.27633088]
[1762270584631,0.19913401,104410.0,104400.0,0.27633088]
[1762270585041,0.232241,104410.0,104400.0,0.0442]
[1762270585259,0.19313401,104410.0,104400.0,0.0432]
[1762270585466,0.19160758,104380.0,104370.0,0.0124]
[1762270585677,0.19159965,104390.0,104370.0,0.22686594]
[1762270585883,0.19159965,104390.0,104380.0,0.00191481]
[1762270585884,0.191316,104390.0,104380.0,0.00191481]
[1762270586290,0.191316,104390.0,104380.0,0.00164244]
[1762270586499,0.2872491,104400.0,104380.0,0.23181002]
[1762270586713,0.19158923,104390.0,104380.0,0.00164244]
[1762270587541,0.24177151,104390.0,104380.0,0.00364244]
[1762270587967,1.32609665,104390.0,104380.0,0.00464244]
[1762270588174,1.36929665,104390.0,104380.0,0.00464244]
[1762270588383,1.48171947,104390.0,104380.0,0.00464244]
[1762270588562,1.47471947,104390.0,104380.0,0.00364244]
[1762270588901,1.46071947,104390.0,104380.0,0.00164244]
[1762270589101,0.19166267,104350.0,104340.0,0.0432]
[1762270589312,0.19168104,104340.0,104330.0,0.01151]
[1762270589548,0.19168104,104340.0,104330.0,0.20320941]
[1762270589776,0.03618228,104350.0,104340.0,0.00191025]
[1762270589986,0.05522915,104350.0,104340.0,0.00191025]
[1762270590591,0.03618228,104360.0,104340.0,0.04047025]
[1762270590858,0.03618228,104360.0,104350.0,0.01151]
[1762270591445,0.017,104350.0,104340.0,0.00391025]
[1762270591645,0.002,104350.0,104340.0,0.00491025]
[1762270591797,0.002,104350.0,104340.0,0.04543025]
[1762270592221,0.002,104350.0,104340.0,0.00491025]
[1762270592826,0.03618228,104350.0,104340.0,0.00191025]
[1762270593059,0.05483411,104350.0,104340.0,0.00191025]
[1762270593803,0.09088812,104350.0,104340.0,0.00391025]
[1762270594023,0.07483411,104350.0,104340.0,0.00391025]
[1762270594239,1.1424048,104350.0,104340.0,0.00391025]
[1762270594468,1.15240479,104350.0,104300.0,0.10563326]
[1762270594685,0.08609968,104310.0,104300.0,0.1061158]
[1762270594915,0.08609968,104330.0,104300.0,0.1302558]
[1762270595141,0.43470965,104330.0,104310.0,0.02414]
[1762270596002,0.42609968,104330.0,104310.0,0.02414]
[1762270596221,0.03618228,104340.0,104320.0,0.01638]
[1762270596515,0.12228196,104340.0,104320.0,0.01638]
[1762270596667,0.12228196,104340.0,104320.0,0.04052]
[1762270596868,0.36065183,104350.0,104320.0,0.04052]
[1762270597103,0.08609968,104340.0,104330.0,0.04052]
[1762270597315,0.13357483,104340.0,104330.0,0.01638]
[1762270597519,0.13357483,104340.0,104320.0,0.004]
[1762270597731,0.01905401,104330.0,104320.0,0.004]
[1762270597927,0.14962884,104340.0,104300.0,0.1302558]
[1762270598105,0.15262884,104340.0,104300.0,0.1302558]
[1762270598311,0.15262884,104340.0,104310.0,0.02414]
[1762270598511,0.13357483,104340.0,104310.0,0.02414]
[1762270598963,0.14535657,104340.0,104310.0,0.02414]
[1762270599568,0.14535657,104340.0,104320.0,0.004]
[1762270599776,0.13357483,104340.0,104320.0,0.004]
[1762270599952,0.14097281,104340.0,104300.0,0.11376992]
[1762270600310,0.14097281,104340.0,104310.0,0.02614]
[1762270600311,0.15397281,104340.0,104310.0,0.02614]
[1762270600519,0.08609968,104320.0,104310.0,0.002]
[1762270600720,0.13089193,104320.0,104310.0,0.002]
[1762270600948,0.14994594,104320.0,104300.0,0.1061158]
[1762270601162,0.14994594,104320.0,104300.0,0.1091158]
[1762270601439,0.13089193,104320.0,104300.0,0.1332558]
[1762270601583,0.13089193,104320.0,104310.0,0.01148]
[1762270601789,0.13989193,104320.0,104310.0,0.01148]
[1762270602879,0.14189193,104320.0,104310.0,0.01448]
[1762270603649,0.13289193,104320.0,104310.0,0.01448]
[1762270603848,0.13289193,104320.0,104310.0,0.003]
[1762270604053,0.15401817,104320.0,104310.0,0.003]
[1762270604435,0.04679225,104320.0,104310.0,0.01448]
[1762270604570,0.05579225,104320.0,104310.0,0.01448]
[1762270604776,0.011,104320.0,104310.0,0.03086]
[1762270604984,0.011,104320.0,104310.0,0.05407]
[1762270605184,0.011,104320.0,104310.0,0.03086]
[1762270605784,0.011,104320.0,104310.0,0.05407]
[1762270606021,0.011,104320.0,104310.0,0.03086]
[1762270606254,0.011,104320.0,104310.0,0.003]
[1762270606805,0.011,104320.0,104310.0,0.0147]
[1762270606984,0.011,104320.0,104310.0,0.003]
[1762270607401,0.011,104320.0,104310.0,0.0147]
[1762270607760,0.011,104320.0,104310.0,0.003]
[1762270607963,0.04718228,104320.0,104310.0,0.003]
[1762270608082,0.17390559,104320.0,104310.0,0.003]
[1762270608574,0.34,104310.0,104300.0,0.1061158]
[1762270608792,0.03618228,104280.0,104270.0,0.02878469]
[1762270609010,0.03618228,104280.0,104270.0,0.00014468]
[1762270609011,0.12228196,104280.0,104270.0,0.00014468]
[1762270609224,0.04324,104310.0,104270.0,0.02802468]
[1762270609450,0.12228196,104300.0,104280.0,0.01618]
[1762270609678,0.06064967,104310.0,104280.0,0.01618]
[1762270609890,0.08609968,104300.0,104290.0,0.0117]
[1762270610700,0.08809968,104300.0,104290.0,0.0117]
[1762270611798,0.002,104300.0,104290.0,0.02788]
[1762270611972,0.002,104300.0,104290.0,0.05109]
[1762270612153,0.06064967,104310.0,104290.0,0.05109]
[1762270612373,0.017,104300.0,104290.0,0.05109]
[1762270612554,0.024,104300.0,104290.0,0.05109]
[1762270613002,0.017,104300.0,104290.0,0.05109]
[1762270614007,0.03618228,104310.0,104290.0,0.05109]
[1762270614228,0.08577886,104320.0,104300.0,0.03939]
[1762270614460,0.04318228,104310.0,104290.0,0.0117]
[1762270614942,0.08609968,104300.0,104290.0,0.0117]
[1762270615160,0.08609968,104300.0,104290.0,0.01193982]
[1762270615387,0.017,104300.0,104290.0,0.02811982]
[1762270615608,0.42577886,104320.0,104290.0,0.05132982]
[1762270615837,0.49048003,104320.0,104290.0,0.05132982]
[1762270616114,0.003,104310.0,104290.0,0.02811982]
[1762270616341,0.41762827,104320.0,104290.0,0.02811982]
[1762270616579,0.08609968,104300.0,104270.0,0.39508468]
[1762270616844,0.08609968,104300.0,104270.0,0.07829468]
[1762270617073,0.18857609,104300.0,104270.0,0.05508468]
[1762270617277,0.08609968,104280.0,104270.0,0.01184468]
[1762270618402,0.08609968,104280.0,104270.0,0.01284468]
[1762270618628,0.08609968,104280.0,104270.0,0.00014468]
[1762270618875,0.08609968,104280.0,104270.0,0.00214468]
[1762270619108,0.12568999,104290.0,104270.0,0.00214468]
[1762270619334,0.12593971,104290.0,104270.0,0.03953468]
[1762270619559,0.05401048,104290.0,104270.0,0.01632468]
[1762270619781,0.008,104280.0,104270.0,0.01832468]
[1762270619996,0.026,104280.0,104270.0,0.04153468]
[1762270620234,0.018,104280.0,104270.0,0.03953468]
[1762270620460,0.12228196,104300.0,104270.0,0.03953468]
[1762270620671,0.01,104290.0,104270.0,0.04853468]
[1762270621083,0.08609968,104280.0,104270.0,0.02432468]
[1762270621287,0.08609968,104280.0,104270.0,0.00814468]
[1762270621621,0.10409968,104280.0,104270.0,0.00814468]
[1762270621828,0.67966384,104280.0,104270.0,0.00814468]
[1762270622036,0.73613454,104280.0,104270.0,0.00814468]
[1762270622239,0.75395034,104280.0,104270.0,0.00814468]
[1762270622459,0.21562247,104280.0,104270.0,0.00814468]
[1762270622639,0.75395034,104280.0,104270.0,0.00014468]
[1762270622880,1.09395034,104280.0,104270.0,0.00014468]
[1762270623082,1.10495034,104280.0,104270.0,0.00262443]
[1762270623306,1.14819034,104280.0,104270.0,0.00262443]
[1762270623508,0.57451015,104260.0,104230.0,0.0002]
[1762270623714,0.57451015,104260.0,104230.0,0.00034482]
[1762270623715,0.08609968,104250.0,104230.0,0.00034482]
[1762270623957,0.07576112,104260.0,104230.0,0.01012997]
[1762270623958,0.16309901,104260.0,104230.0,0.01012997]
[1762270624157,0.12567326,104260.0,104250.0,0.0117]
[1762270624358,0.37618228,104270.0,104250.0,0.0117]
[1762270624500,0.08609968,104260.0,104250.0,0.0117]
[1762270625615,0.16162439,104280.0,104250.0,0.05109]
[1762270625817,0.08609968,104260.0,104240.0,0.0117]
[1762270626019,0.15344784,104260.0,104230.0,0.02755482]
[1762270626166,0.17250185,104260.0,104230.0,0.03925482]
[1762270626369,0.17750185,104260.0,104230.0,0.03925482]
[1762270626571,0.17450185,104260.0,104230.0,0.03525482]
[1762270626805,0.16950185,104260.0,104250.0,0.002]
[1762270626964,0.15744784,104260.0,104250.0,0.002]
[1762270627162,0.007,104260.0,104250.0,0.01818]
[1762270627367,0.03618228,104270.0,104250.0,0.01618]
[1762270627801,0.005,104260.0,104250.0,0.01618]
[1762270628014,0.08609968,104280.0,104270.0,0.0117]
[1762270628214,0.08609968,104280.0,104250.0,0.03491]
[1762270628415,0.12633063,104280.0,104250.0,0.0117]
[1762270628713,0.12633063,104280.0,104260.0,0.02321]
[1762270628714,0.10727662,104280.0,104260.0,0.02321]
[1762270628918,0.08609968,104280.0,104250.0,0.0117]
[1762270629127,0.002,104260.0,104250.0,0.03505482]
[1762270629650,0.08609968,104280.0,104250.0,0.05123482]
[1762270629853,0.10515369,104280.0,104250.0,0.05123482]
[1762270630039,0.08909968,104280.0,104260.0,0.005]
[1762270630246,0.09800965,104280.0,104260.0,0.005]
[1762270630517,0.10000965,104280.0,104260.0,0.02821]
[1762270630716,0.09700965,104280.0,104260.0,0.02321]
[1762270630903,0.09900965,104280.0,104260.0,0.02321]
[1762270631255,0.10100965,104280.0,104250.0,0.02752532]
[1762270631602,0.10100965,104280.0,104260.0,0.02321]
[1762270631832,0.10100965,104280.0,104250.0,0.03705482]
[1762270632371,0.09700965,104280.0,104250.0,0.04868934]
[1762270632597,0.09700965,104280.0,104250.0,0.02547934]
[1762270632797,0.10000965,104280.0,104260.0,0.02921]
[1762270633047,0.10000965,104280.0,104260.0,0.006]
[1762270633204,0.09700965,104280.0,104250.0,0.03505482]
[1762270633639,0.08609968,104260.0,104250.0,0.01384482]
[1762270634217,0.09661505,104260.0,104250.0,0.00214482]
[1762270635068,0.13279733,104260.0,104250.0,0.00214482]
[1762270635255,0.14079733,104260.0,104250.0,0.00214482]
[1762270635470,0.15985134,104260.0,104250.0,0.00062471]
[1762270636224,0.14279733,104260.0,104250.0,0.00562471]
[1762270636454,0.01,104260.0,104250.0,0.05683471]
[1762270637321,0.01,104260.0,104250.0,0.03361471]
[1762270637525,0.01,104260.0,104250.0,0.05683471]
[1762270637952,0.01,104260.0,104250.0,0.00562471]
[1762270638306,0.11000406,104260.0,104250.0,0.00562471]
[1762270638680,0.16093287,104260.0,104250.0,0.01792471]
[1762270638976,0.09609968,104260.0,104250.0,0.01792471]
[1762270639915,0.01,104260.0,104250.0,0.05683471]
[1762270643554,0.01,104260.0,104250.0,0.39683471]
[1762270644208,0.008,104260.0,104250.0,0.39183471]
[1762270644690,0.009,104260.0,104250.0,0.39383471]
[1762270644897,0.019,104260.0,104250.0,0.39383471]
[1762270645104,0.01905401,104290.0,104250.0,0.39183471]
[1762270645303,0.08609968,104280.0,104260.0,0.02322]
[1762270645511,0.08431588,104290.0,104260.0,0.02322]
[1762270645713,0.08431588,104290.0,104280.0,0.01569]
[1762270645714,0.0481336,104290.0,104280.0,0.01569]
[1762270645864,0.67255427,104320.0,104280.0,0.01569]
[1762270645865,0.06300804,104320.0,104280.0,0.01569]
[1762270646068,0.08609968,104300.0,104270.0,0.03552]
[1762270646340,0.08609968,104300.0,104270.0,0.07876]
[1762270646624,0.13279733,104300.0,104290.0,0.0123]
[1762270647034,0.13279733,104300.0,104270.0,0.05554]
[1762270647354,0.13279733,104300.0,104270.0,0.07876]
[1762270647560,0.12428196,104300.0,104280.0,0.02322]
[1762270647779,0.08909968,104300.0,104290.0,0.0123]
[1762270648193,0.002,104300.0,104290.0,0.0123]
[1762270648415,0.08609968,104300.0,104290.0,0.0123]
[1762270648819,0.09509968,104300.0,104290.0,0.0123]
[1762270648991,0.09509968,104300.0,104290.0,0.02799]
[1762270648992,0.009,104300.0,104290.0,0.02799]
[1762270649227,0.009,104300.0,104290.0,0.05121]
[1762270650009,0.012,104300.0,104290.0,0.05121]
[1762270650271,0.003,104300.0,104290.0,0.0123]
[1762270650483,0.003,104300.0,104290.0,0.02799]
[1762270650663,0.001,104300.0,104280.0,0.01244482]
[1762270650912,0.08609968,104290.0,104280.0,0.01244482]